Workbook

Sheet ALMOXARIFADO
C1: PLANILHA DE ORÇAMENTO
C3: EDIFICAÇÃO PARA ALMOXARIFADO, UNIDADE II
C4: Av. Dr.ISMAEL ALONSO Y ALONSO,
C5: Bairro São José, no Câmpus II da FACEF, em FRANCA, SP. | J5: BDI
C6: fonte FDE LS=122% - BDI=15% | J6: 0.23
A8: CODIGO | B8: Item | C8: DESCRIMINAÇÃO DO SERVIÇO | D8: UN | E8: QTDE | F8: UNIT | G8: TOTAL | H8: % | I8: MEDIÇÃO | J8: UNIT | L8: VALOR | M8: SALDO
I9: 1ª | L9: R$ | M9: R$
B10: 1 | C10: INSTALACAO DO CANTEIRO DE OBRA | G10: =SUM(G11:G15) -> 1969.395607
A11: 13.50.001 | C11: DEMOLICAO DE PISO DE CONCRETO SIMPLES CAPEADO | D11: m³ | E11: 0.672 | F11: =K11 -> 138.0654472 | G11: =F11*E11 -> 92.77998049 | H11: 100 | I11: 100 | J11: 147.67 | K11: =J11/1.23*1.15 -> 138.0654472 | L11: =G11 -> 92.77998049 | M11: =G11-L11 -> 0
A12: 16.80.098 | C12: REMOÇÃO DE ENTULHO | D12: m³ | E12: 5 | F12: =K12 -> 32.39634146 | G12: =F12*E12 -> 161.9817073 | H12: 100 | I12: 100 | J12: 34.65 | K12: =J12/1.23*1.15 -> 32.39634146 | L12: =G12 -> 161.9817073 | M12: =G12-L12 -> 0
A13: 16.06,050 | C13: ABRIGO PROVISORIO PARA ALOJAMENTO E DEPOSITO DE MATERIAIS E FERRAMENTAS | D13: m² | E13: 6 | F13: 214.245935 | G13: =F13*E13 -> 1285.47561 | H13: 100 | I13: 100 | J13: 229.15 | K13: 214.245935 | L13: =G13 -> 1285.47561 | M13: 0
A14: 21002 | C14: LOCACAO DA OBRA: EXECUCAO DE GABARITO | D14: m² | E14: 47.03 | F14: 2.552439024 | G14: =F14*E14 -> 120.0412073 | H14: 100 | I14: 100 | J14: 2.73 | K14: 2.552439024 | L14: =G14 -> 120.0412073 | M14: 0
A15: 16.06.065 | C15: ANDAIME - ALUGUEL MENSAL | D15: m² | E15: 47.03 | F15: =K15 -> 6.572764228 | G15: =F15*E15 -> 309.1171016 | H15: 100 | I15: 100 | J15: 7.03 | K15: =J15/1.23*1.15 -> 6.572764228 | L15: =G15 -> 309.1171016 | M15: 0
B17: 2 | C17: MOVIMENTO DE TERRA | G17: =SUM(G18:G20) -> 238.763561
A18: 16.13.001 | C18: ESCAVAÇÃO MANUAL PROFUNDIDADE ATÉ 1,80 M | D18: ml | E18: 3.36 | F18: 24.42113821 | G18: =F18*E18 -> 82.05502439 | H18: 100 | I18: 100 | J18: 26.12 | K18: 24.42113821 | L18: =G18 -> 82.05502439 | M18: 0
A19: 16.13.010 | C19: APILOAMENTO PARA SIMPLES REGULARIZAÇÃO | D19: m² | E19: 7.5 | F19: 4.244715447 | G19: =F19*E19 -> 31.83536585 | H19: 100 | I19: 100 | J19: 4.54 | K19: 4.244715447 | L19: =G19 -> 31.83536585 | M19: 0
A20: 16.13.015 | C20: REATERRO INTERNO APILOADO | D20: m³ | E20: 3.36 | F20: 37.16463415 | G20: =F20*E20 -> 124.8731707 | H20: 100 | I20: 100 | J20: 39.75 | K20: 37.16463415 | L20: =G20 -> 124.8731707 | M20: 0
B22: 3 | C22: INFRA - ESTRUTURA | G22: =SUM(G23:G31) -> 9216.719878
A23: 02.02.098 | C23: TAXA DE MOBILIZAÇÃO DE EQUIPAMENTO - ESTACAS STRAUSS | D23: UN | E23: 1 | F23: 1424.85 | G23: =SUM(F23*E23) -> 1424.85 | H23: 100 | I23: 100 | J23: 1523.97 | K23: 1424.85 | L23: =G23 -> 1424.85 | M23: 0
A24: 02.02.035 | C24: ESTACA MOLDADA "IN-LOCO" D= 25 CM PARA CARGA MAXIMA DE 20 T | D24: ml | E24: 36 | F24: 49.11341463 | G24: =F24*E24 -> 1768.082927 | H24: 100 | I24: 100 | J24: 52.53 | K24: 49.11341463 | L24: 1768.082927 | M24: 0
A25: 16.13.026 | C25: LASTRO DE PEDRA BRITADA E= 5CM | D25: m² | E25: 7.5 | F25: 5.591056911 | G25: 41.93292683 | H25: 100 | I25: 100 | J25: 5.98 | K25: 5.591056911 | L25: 41.93292683 | M25: 0
A26: 02.07.002 | C26: IMPERM RESP ALV EMBAS C/CIM-AREIA 1-3 HIDROFUGO/TINTA BETUMINOSA | D26: m² | E26: 13.04 | F26: 40.29674797 | G26: 525.4695935 | H26: 100 | I26: 100 | J26: 43.1 | K26: 40.29674797 | L26: 525.4695935 | M26: 0
A27: 02.06.014 | C27: ALVEN. DE EMBASAMENTO COM BLOCO DE CONCRETO E=14 CM CLASSE A | D27: m³ | E27: 0.79 | F27: 467.0869919 | G27: 368.9987236 | H27: 100 | I27: 100 | J27: 499.58 | K27: 467.0869919 | L27: 368.9987236 | M27: 0
A28: 02.03.001 | C28: FORMA DE MADEIRA MACIÇA | D28: m² | E28: 38.3 | F28: 44.69105691 | G28: 1711.66748 | H28: 100 | I28: 100 | J28: 47.8 | K28: 44.69105691 | L28: 1711.66748 | M28: 0
A29: 02.04.002 | C29: AÇO CA 50 (A OU B) FYK=500 MPA | D29: kg | E29: 336.7 | F29: 6.114634146 | G29: 2058.797317 | H29: 100 | I29: 100 | J29: 6.54 | K29: 6.114634146 | L29: 2058.797317 | M29: 0
A30: 02.04.003 | C30: AÇO CA 60 (A OU B) FYK=600 MPA | D30: kg | E30: 38.7 | F30: 5.890243902 | G30: 227.952439 | H30: 100 | I30: 100 | J30: 6.3 | K30: 5.890243902 | L30: 227.952439 | M30: 0
A31: 02.05.014 | C31: CONCRETO DOSADO E LANÇADO FCK= 20MPA | D31: m³ | E31: 3.31 | F31: 328.9934959 | G31: 1088.968472 | H31: 100 | I31: 100 | J31: 351.88 | K31: 328.9934959 | L31: 1088.968472 | M31: 0
B33: 4 | C33: SUPERESTRUTURA | G33: =SUM(G34:G38) -> 8430.025915
A34: 03.01.001 | C34: FORMAS DE MADEIRA MACIÇA | D34: m² | E34: 26.16 | F34: 66.8495935 | G34: =F34*E34 -> 1748.785366 | H34: 100 | I34: 100 | J34: 71.5 | K34: 66.8495935 | L34: =G34 -> 1748.785366 | M34: 0
A35: 03.02.002 | C35: AÇO CA 50 (A OU B) FYK=500 MPA | D35: kg | E35: 310 | F35: 6.114634146 | G35: =F35*E35 -> 1895.536585 | H35: 100 | I35: 100 | J35: 6.54 | K35: 6.114634146 | L35: =G35 -> 1895.536585 | M35: 0
A36: 03.02.003 | C36: AÇO CA 60 (A OU B) FYK=600 MPA | D36: kg | E36: 1.2 | F36: 5.890243902 | G36: =F36*E36 -> 7.068292683 | H36: 100 | I36: 100 | J36: 6.3 | K36: 5.890243902 | L36: =G36 -> 7.068292683 | M36: 0
A37: 03.03.014 | C37: CONCRETO DOSADO E LANÇADO FCK= 20 MPA | D37: m³ | E37: 1.4 | F37: 328.9934959 | G37: =F37*E37 -> 460.5908943 | H37: 100 | I37: 100 | J37: 351.88 | K37: 328.9934959 | L37: =G37 -> 460.5908943 | M37: 0
A38: 03.03.018 | C38: LAJE PRE-FABRICADA VIGOTA TRELIÇADA UNIDIRECIONAL LT-12 100 KGF/m² | D38: m² | E38: 55.45 | F38: 77.87276423 | G38: =F38*E38 -> 4318.044776 | H38: 100 | I38: 100 | J38: 83.29 | K38: 77.87276423 | L38: =G38 -> 4318.044776 | M38: 0
M39: 0
B40: 5 | C40: ALVENARIA | G40: =SUM(G41:G42) -> 7531.377862
A41: 04.01.031 | C41: ALVENARIA DE BLOCOS DE CONCRETO E= 14 CM | D41: m² | E41: 131.5 | F41: 55.0597561 | G41: =E41*F41 -> 7240.357927 | H41: 100 | I41: 100 | J41: 58.89 | K41: 55.0597561 | L41: =G41 -> 7240.357927 | M41: 0
A42: 04.01.058 | C42: VERGA/CINTA EM BLOCO DE CONCRETO CANALETA 14 CM | D42: m | E42: 13.04 | F42: 22.31747967 | G42: =E42*F42 -> 291.019935 | H42: 100 | I42: 0 | J42: 23.87 | K42: 22.31747967 | L42: 0 | M42: 291.019935
B44: 6 | C44: ESQUADRIA METÁLICA | G44: =SUM(G45:G46) -> 3498.842276
A45: 06.02.015 | C45: PORTA EM CHAPA DE FERRO (L=82 CM) | D45: un | E45: 2 | F45: 771.6406504 | G45: 1543.281301 | H45: 100 | I45: 100 | J45: 825.32 | K45: 771.6406504 | L45: =G45 -> 1543.281301 | M45: 0
A46: 06.01.025 | C46: CAIXILHOS DE FERRO BASCULANTES | D46: m² | E46: 4.8 | F46: 407.4085366 | G46: 1955.560976 | H46: 100 | I46: 100 | J46: 435.75 | K46: 407.4085366 | L46: =G46 -> 1955.560976 | M46: 0
B48: 7 | C48: VIDROS | G48: =G49 -> 376.3473171
A49: 14.01.006 | C49: VIDRO LISO COMUM INCOLOR DE 5 MM | D49: m² | E49: 4.8 | F49: 78.40569106 | G49: 376.3473171 | H49: 100 | I49: 100 | J49: 83.86 | K49: 78.40569106 | L49: =G49 -> 376.3473171 | M49: 0
B51: 8 | C51: COBERTURA | G51: =SUM(G52:G57) -> 5691.663866
A52: 07.01.010 | C52: EM TESOURAS PARA TELHAS OND CIM-AM/AL/PLAST - VÃOS ATÉ 7,00 M | D52: m² | E52: 50.14 | F52: 60.98739837 | G52: =E52*F52 -> 3057.908154 | H52: 100 | I52: 100 | J52: 65.23 | K52: 60.98739837 | L52: =G52 -> 3057.908154 | M52: 0
A53: 07.03.090 | C53: TELHA TECNOLOGIA CRFS ONDULADA E= 6MM | D53: m² | E53: 50.14 | F53: 23.1402439 | G53: 1160.251829 | H53: 100 | I53: 100 | J53: 24.75 | K53: 23.1402439 | L53: 1160.251829 | M53: 0
A54: 08.12.031 | C54: RUFO EM CHAPA GALVANIZADA N 24 CORTE 0,16 M | D54: m | E54: 28.2 | F54: 24.10325203 | G54: 679.7117073 | H54: 100 | I54: 100 | J54: 25.78 | K54: 24.10325203 | L54: 679.7117073 | M54: 0
A55: 08.12,015 | C55: CALHA OU AGUA FURTADA EM CHAPA GALV N24 C=0,33M | D55: m | E55: 10.65 | F55: 45.29878049 | G55: 482.4320122 | H55: 100 | I55: 100 | J55: 48.45 | K55: 45.29878049 | L55: 482.4320122 | M55: 0
A56: 08.12.007 | C56: LIGAÇÃO CALHA CONDUTOR DE CHAPA AÇO GALVANIZADO N 24 DIAMETRO DE 3" | D56: un | E56: 2 | F56: 37.03373984 | G56: 74.06747967 | H56: 100 | I56: 100 | J56: 39.61 | K56: 37.03373984 | L56: 74.06747967 | M56: 0
A57: 08.12.001 | C57: CONDUTOR EM CHAPA GALVANIZADA N 24 DESENV. 0,25 M | D57: m | E57: 6 | F57: 39.54878049 | G57: 237.2926829 | H57: 100 | I57: 100 | J57: 42.3 | K57: 39.54878049 | L57: 237.2926829 | M57: 0 | N57: *
B59: 9 | C59: REVESTIMENTO DE PAREDES INTERNAS | G59: =SUM(G60:G61) -> 2963.134878
A60: 12.02.001 | C60: CHAPISCO PARA PAREDE INTERNA E FORRO | D60: m² | E60: 139.8 | F60: 6.843902439 | G60: =F60*E60 -> 956.777561 | H60: 100 | I60: 100 | J60: 7.32 | K60: 6.843902439 | L60: =G60 -> 956.777561 | M60: 0
A61: 12.02.007 | C61: REBOCO P/PAREDE INTERNA E FORRO | D61: m² | E61: 139.8 | F61: 14.35162602 | G61: =F61*E61 -> 2006.357317 | H61: 100 | I61: 100 | J61: 15.35 | K61: 14.35162602 | L61: =G61 -> 2006.357317 | M61: 0
B63: 10 | C63: REVESTIMENTO DE PAREDES EXTERNAS | G63: =SUM(G64:G65) -> 1973.515654
A64: 12.04.001 | C64: CHAPISCO PARA PAREDE EXTERNA | D64: m² | E64: 93.11 | F64: 6.843902439 | G64: =F64*E64 -> 637.2357561 | H64: 100 | I64: 100 | J64: 7.32 | K64: 6.843902439 | L64: =G64 -> 637.2357561 | M64: 0
A65: 12.04.007 | C65: REBOCO PARA PAREDE EXTERNA | D65: m² | E65: 93.11 | F65: 14.35162602 | G65: =F65*E65 -> 1336.279898 | H65: 100 | I65: 100 | J65: 15.35 | K65: 14.35162602 | L65: =G65 -> 1336.279898 | M65: 0
B67: 11 | C67: PISOS INTERNOS | G67: =SUM(G68:G69) -> 2498.641463
A68: 13.01.004 | C68: LASTRO DE CONCRETO C/ HIDROFUGO E= 5CM | D68: m² | E68: 42 | F68: 23.50487805 | G68: =F68*E68 -> 987.204878 | H68: 100 | I68: 100 | J68: 25.14 | K68: 23.50487805 | L68: =G68 -> 987.204878 | M68: 0
A69: 13.02.005 | C69: CIMENTADO DESEMPENADO ALISADO E= 3,5CM INCL ARG REGULARIZÇÃO | D69: m² | E69: 42 | F69: 35.98658537 | G69: =F69*E69 -> 1511.436585 | H69: 100 | I69: 100 | J69: 38.49 | K69: 35.98658537 | L69: =G69 -> 1511.436585 | M69: 0
B71: 12 | C71: INSTALACOES ELETRICAS | G71: =SUM(G72:G82) -> 2389.064228
A72: 09.03.059 | C72: ELETRODUTO EM POLIETILENO DE 32 MM INCLUSIVE CONEXÕES | D72: ml | E72: 32 | F72: 16.36178862 | G72: =F72*E72 -> 523.5772358 | H72: 100 | I72: 100 | J72: 17.5 | K72: 16.36178862 | L72: =G72 -> 523.5772358 | M72: =G72-L72 -> 0
A73: 09.06.026 | C73: CAIXA DE PASSAGEM ALV. 0.60x0.60x0.60 m | D73: un | E73: 1 | F73: =K73 -> 244.8471545 | G73: =F73*E73 -> 244.8471545 | H73: 100 | I73: 0 | J73: 261.88 | K73: =J73/1.23*1.15 -> 244.8471545 | L73: 0 | M73: 244.8471545
A74: 09.04.019 | C74: QUADRO GERAL-DISJUNTOR TERMOMAGNETICO 30X10A A 3X50A | D74: un | E74: 1 | F74: 60.03373984 | G74: 60.03373984 | H74: 100 | I74: 0 | J74: 64.21 | K74: 60.03373984 | L74: 0 | M74: 60.03373984
A75: 09.04.091 | C75: DISJUNTOR BIPOLAR TERMOMAGNETICO 2X10A A 2X50A | D75: un | E75: 6 | F75: 37.21138211 | G75: 223.2682927 | H75: 100 | I75: 33 | J75: 39.8 | K75: 37.21138211 | L75: 74.35 | M75: 148.9182927
A76: 09.04.045 | C76: QUADRO DISTRIBUIÇÃO DISJ. GERAL 50A PARA 10 A 12 DISJUNTORES | D76: un | E76: 1 | F76: 168.0776423 | G76: 168.0776423 | H76: 100 | I76: 100 | J76: 179.77 | K76: 168.0776423 | L76: =G76 -> 168.0776423 | M76: 0
A77: 09.09.052 | C77: IL-45 LUMINÁRIA PARA LAMPADA FLUOR (2X32W) | D77: un | E77: 2 | F77: 117.1784553 | G77: 234.3569106 | H77: 100 | I77: 100 | J77: 125.33 | K77: 117.1784553 | L77: 234.3569106 | M77: 0
A78: 09.08.029 | C78: INTERRUPTOR DE 1 TECLA- ELETRODUTO DE POLIETILENO | D78: un | E78: 2 | F78: 64.42804878 | G78: 128.8560976 | H78: 100 | I78: 100 | J78: 68.91 | K78: 64.42804878 | L78: 128.8560976 | M78: 0
A79: 09.08.046 | C79: TOMADA 2P+T PADRÃO NBR14136 CORRENTE 10A-250V ELETR DE POLIETILENO | D79: un | E79: 6 | F79: 74.86219512 | G79: 449.1731707 | H79: 100 | I79: 100 | J79: 80.07 | K79: 74.86219512 | L79: 449.1731707 | M79: 0
A80: 09.07.003 | C80: FIO DE 1,50 MM²-750 V DE ISOLAÇÃO | D80: ml | E80: 20 | F80: 1.55203252 | G80: 31.04065041 | H80: 100 | I80: 100 | J80: 1.66 | K80: 1.55203252 | L80: 31.04065041 | M80: 0
A81: 09.07.004 | C81: FIO DE 2,50 MM²-750 V DE ISOLAÇÃO | D81: ml | E81: 100 | F81: 2.122357724 | G81: 212.2357724 | H81: 100 | I81: 100 | J81: 2.27 | K81: 2.122357724 | L81: 212.2357724 | M81: 0
A82: 09.13.027 | C82: TERRA SIMPLES- 1 HASTE | D82: un | E82: 1 | F82: 113.597561 | G82: 113.597561 | H82: 100 | I82: 0 | J82: 121.5 | K82: 113.597561 | L82: 0 | M82: 113.597561
B84: 13 | C84: PINTURA | G84: =SUM(G85:G88) -> 3691.726447
A85: 15.02.005 | C85: LATEX PAREDES INTERNAS E FORRO | D85: m² | E85: 139.8 | F85: 14.60406504 | G85: =E85*F85 -> 2041.648293 | H85: 100 | I85: 100 | J85: 15.62 | K85: 14.60406504 | L85: =G85 -> 2041.648293 | M85: 0
A86: 15.04.005 | C86: LATEX PAREDES EXTERNAS | D86: m² | E86: 93.11 | F86: 14.60406504 | G86: =E86*F86 -> 1359.784496 | H86: 100 | I86: 100 | J86: 15.62 | K86: 14.60406504 | L86: =G86 -> 1359.784496 | M86: 0
A87: 15.03,035 | C87: FUNDO ANTI-OXIDANTE EM ESQUADRIAS | D87: m² | E87: 8.16 | F87: 19.10121951 | G87: =E87*F87 -> 155.8659512 | H87: 100 | I87: 100 | J87: 20.43 | K87: 19.10121951 | L87: =G87 -> 155.8659512 | M87: 0
A88: 15.03.021 | C88: ESMALTE EM ESQUADRIAS DE FERRO | D88: m² | E88: 8.16 | F88: 16.47398374 | G88: =E88*F88 -> 134.4277073 | H88: 100 | I88: 100 | J88: 17.62 | K88: 16.47398374 | L88: =G88 -> 134.4277073 | M88: 0
B90: 14 | C90: SERVIÇOS GERAIS | G90: =G91 -> 350.4499715
A91: 16.11.005 | C91: LIMPEZA DA OBRA | D91: m² | E91: 47.03 | F91: 7.451626016 | G91: =E91*F91 -> 350.4499715 | H91: 100 | I91: 100 | J91: 7.97 | K91: 7.451626016 | L91: =G91 -> 350.4499715 | M91: 0
J92: 0.22 | K92: 0.15
C93: TOTAL GERAL ................................................................................................... | F93: R$ | G93: =G10+G17+G22+G33+G40+G44+G48+G51+G59+G63+G67+G71+G84+G90 -> 50819.66892 | L93: =SUM(L11:L91) -> 49961.25224 | M93: =SUM(M11:M91) -> 858.4166829
C94: (QUARENTA E NOVE MIL QUINHENTOS E DOZE REAIS E OITO CENTAVOS)

Sheet AUDITÓRIO_BLC CENTRAL
A1: ANEXO1I - PLANILHA DE ORÇAMENTO
A3: AUDITÓRIO / BLOCO CENTRAL UNIDADE II
A4: Av. Dr.ISMAEL ALONSO Y ALONSO,
A5: Bairro São José, no Câmpus II da FACEF, em FRANCA, SP.
A6: fonte FDE(1/13) - CPOS(159) - SINAPI(1/13)
A7: LS=122% - BDI=23%
A9: CODIGO | B9: Item | C9: DESCRIMINAÇÃO DO SERVIÇO | D9: UN | E9: QTDE | F9: UNIT (R$) | G9: TOTAL (R$)
B12: 1 | C12: INSTALACAO DO CANTEIRO DE OBRA | G12: =SUM(G13:G22) -> 0
A13: 13.50.001 | C13: DEMOLICAO DE PISO DE CONCRETO SIMPLES CAPEADO | D13: m³ | E13: 37.21 | F13: 159.38
A14: 16.80.098 | C14: REMOÇÃO DE ENTULHO | D14: m³ | E14: 62.88 | F14: 36.17
A15: 16.06.050 | C15: ABRIGO PROVISORIO PARA ALOJAMENTO E DEPOSITO DE MATERIAIS E FERRAMENTAS | D15: m² | E15: 23.2 | F15: 240.31
A16: 73686 | C16: LOCACAO DA OBRA, COM USO DE EQUIPAMENTOS TOPOGRAFICOS, INCLUSIVE TOPOG | D16: m² | E16: 737.56 | F16: 12.6514 | T16: =290.45+77.54+12.98 -> 380.97
A17: 16.06.065 | C17: ANDAIME - ALUGUEL MENSAL | D17: m² | E17: 3080.97 | F17: 10.23
A18: 72208 | C18: CARGA MECANIZADA E REMOCAO E ENTULHO COM TRANSPORTE ATE 1KM | D18: m³ | E18: 32.3 | F18: 3.5868
A19: 74220/001 | C19: TAPUME DE CHAPA DE MADEIRA COMPENSADA (6mm) - PINTURA A CAL APROV 2X | D19: m² | E19: 384.87 | F19: 41.48
A20: 04.50.001 | C20: DEMOLIÇÕES DE ALVENARIAS EM GERAL E ELEMENTOS VAZADOS,INCL REVESTIMENTOS | D20: m³ | E20: 194.14 | F20: 56.88
A21: 06.60.001 | C21: RETIRADA DE ESQUADRIAS METALICAS | D21: m² | E21: 30.05 | F21: 19.22
A22: 02.50.001 | C22: DEMOLIÇÃO DE CONCRETO SIMPLES (MANUAL) | D22: m³ | E22: 79.48 | F22: 134.86
B24: 2 | C24: MOVIMENTO DE TERRA | G24: =SUM(G25:G30) -> 0
A25: 01.05.001 | C25: ESCAVACAO MANUAL - PROFUNDIDADE ATE 1.80 M | D25: m³ | E25: 89.01 | F25: 28.19
A26: 73904/001 | C26: ATERRO APILOADO(MANUAL) EM CAMADAS DE 20 CM COM MATERIAL DE EMPRESTIMO | D26: m³ | E26: 173.42 | F26: 79.5684
A27: 01.02.003 | C27: ATERRO COM TRANSPORTE POR CAMINHAO NOS PRIMEIROS 100 M | D27: m³ | E27: 28.59 | F27: 18.85
A28: 01.03.005 | C28: TRANSPORTE POR CAMINHAO M3X | D28: km | E28: 3468.4 | F28: 0.99
A29: 02.01.010 | C29: APILOAMENTO PARA SIMPLES REGULARIZACAO | D29: m² | E29: 432.79 | F29: 4.9
A30: 01.06.005 | C30: REATERRO INTERNO APILOADO | D30: m³ | E30: 29.85 | F30: 42.91
B32: 3 | C32: INFRA - ESTRUTURA | G32: =SUM(G33:G44) -> 0
A33: 02.02.098 | C33: TAXA DE MOBILIZACAO DE EQUIPAMENTOS - ESTACAS STRAUSS | D33: un | E33: 2 | F33: 1731.84
A34: 02.02.035 | C34: ESTACAS TIPO STRAUSS DIAM 25CM CAPACIDADE ATE 20 TF | D34: m | E34: 404 | F34: 54.69
A35: 02.02.037 | C35: ESTACAS TIPO STRAUSS DIAM 38CM CAPACIDADE ATE 40 TF | D35: m | E35: 128 | F35: 86.1
A36: 02.02.025 | C36: BROCA DE CONCRETO DE DIAMETRO 20CM - INCL ARRANQUES | D36: m | E36: 192 | F36: 33.41
A37: 02.01.012 | C37: LASTRO DE PEDRA BRITADA - 5CM | D37: m² | E37: 194.85 | F37: 6.18
A38: 02.07.002 | C38: IMPERM RESP ALV EMBAS C/CIM-AREIA 1-3 HIDROFUGO/TINTA BETUMINOSA | D38: m² | E38: 199.3 | F38: 45.9
A39: 03.01.001 | C39: FORMAS DE MADEIRA MACICA | D39: m² | E39: 334.19 | F39: 78.51
A40: 02.04.002 | C40: ACO CA 50 (A OU B) FYK= 500 M PA | D40: kg | E40: 3835.5 | F40: 7.02
A41: 02.04.003 | C41: ACO CA 60 (A OU B) FYK= 600 M PA | D41: kg | E41: 352.8 | F41: 6.84
A42: 02.05.018 | C42: CONCRETO DOSADO E LANCADO FCK=25MPA | D42: m³ | E42: 10.45 | F42: 384.05
A43: 02.05.014 | C43: CONCRETO DOSADO E LANCADO FCK= 20 M PA | D43: m³ | E43: 4.04 | F43: 371.53
A44: 73844/002 | C44: MURO DE ARRIMO DE ALVENARIA DE TIJOLOS | D44: m³ | E44: 70.89 | F44: 421.8272
B46: 4 | C46: SUPERESTRUTURA | G46: =SUM(G47:G58) -> 0
A47: 03.01.005 | C47: CIMBRAMENTO DE MADEIRA | D47: m³ | E47: 1982.08 | F47: 27.44 | T47: =(77.54+12.98)*4 -> 362.08
A48: 03.01.001 | C48: FORMAS DE MADEIRA MACICA | D48: m² | E48: 90.52 | F48: 78.51
A49: 03.01.002 | C49: FORMAS PLANAS PLASTIFICADA PARA CONCRETO APARENTE | D49: m² | E49: 627.06 | F49: 92.82
A50: 03.01.003 | C50: FORMAS CURVAS PLASTIFICADA PARA CONCRETO APARENTE | D50: m² | E50: 264.46 | F50: 118.8
A51: 03.02.002 | C51: AÇO CA 50 (A OU B) FYK=500 MPA | D51: kg | E51: 7296.36 | F51: 7.02
A52: 03.02.003 | C52: AÇO CA 60 (A OU B) FYK=600 MPA | D52: kg | E52: 1149.6 | F52: 6.84
A53: 03.03.026 | C53: CONCRETO DOSADO,BOMBEADO E LANCADO FCK 25 MPA | D53: m³ | E53: 19.7 | F53: 416.22
A54: 03.03.030 | C54: CONCRETO DOSADO,BOMBEADO E LANCADO FCK 30 MPA | D54: m³ | E54: 86.72 | F54: 430.31
A55: 03.03.086 | C55: LAJE PRE-FABRICADA PRE-LAJE TRELICADA UNIDIR C/ EPS PLT20-300KGF/M2 | D55: m² | E55: 225.95 | F55: 167.81
A56: 03.03.088 | C56: LAJE PRE-FABRICADA PRE-LAJE TRELICADA UNIDIR C/ EPS PLT25-300KGF/M2 | D56: m² | E56: 26 | F56: 182.57
A57: 03.03.018 | C57: LAJE PRE-FABRICADA VIGOTA TRELICADA UNIDIRECIONAL LT12-100KGF/M2 | D57: m² | E57: 93.14 | F57: 87.69
A58: 03.03.019 | C58: LAJE PRE-FABRICADA VIGOTA TRELICADA UNIDIRECIONAL LT16-100KGF/M2 | D58: m² | E58: 7.07 | F58: 107.6
B60: 5 | C60: ALVENARIA | G60: =SUM(G61:G69) -> 0
A61: 04.01.058 | C61: VERGA/CINTA EM BLOCO DE CONCRETO CANALETA - 14 CM | D61: m | E61: 244.9 | F61: 25.09
A62: 04.01.072 | C62: ALVENARIA DE TIJOLO CERAMICO FURADO (BAIANO) ESP.NOM 15 CM | D62: m² | E62: 391.26 | F62: 44.16
A63: 04.01.002 | C63: ALVENARIA DE TIJOLO DE BARRO MACICO E=1/2 TIJOLO | D63: m² | E63: 538.09 | F63: 72.55
A64: 74229/001 | C64: DIVISORIA EM MARMORE BRANCO POLIDO, ESPESSURA 3 CM, ASSENTADO COM ARGAMASSA TRAÇO 1:4 (CIMENTO E AREIA), ARREMATE COM CIMENTO BRANCO, EXCLUSIVE FERRAGEM | D64: m² | E64: 11.766 | F64: 675.42
A65: 190106 | C65: PEITORIL E/OU SOLEIRA EM GRANITO COM ESPESSURA DE 2 cm e LARGURA ATÉ 20 cm | D65: m | E65: 15.1 | F65: 70.0646
A66: 04.01.032 | C66: ALVENARIA DE BLOCOS DE CONCRETO E=19CM | D66: m² | E66: 3.98 | F66: 72.42
A67: CODIGO | B67: Item | C67: DESCRIMINAÇÃO DO SERVIÇO | D67: UN | E67: QTDE | F67: UNIT (R$) | G67: TOTAL (R$)
B70: 6 | C70: ESQUADRIA METÁLICA | G70: =SUM(G71:G78) -> 0
A71: 250124 | C71: CAIXILHO FIXO EM ALUMÍNIO SOB MEDIDA BRC | D71: m² | E71: 27.72 | F71: 734.9158
A72: 250136 | C72: CAIXILHO EM ALUMÍNIO MAXIMAR COM VIDRO BRC | D72: m² | E72: 13.7 | F72: 910.9618
A73: 250137 | C73: CAIXILHO EM ALUMÍNIO BASCULANTE COM VIDRO, BRC | D73: m² | E73: 17.55 | F73: 965.1176
A74: 250138 | C74: CAIXILHO EM ALUMÍNIO DE CORRER COM VIDRO, BRC | D74: m² | E74: 17.7 | F74: 562.054
A75: 250143 | C75: CAIXILHO EM ALUMÍNIO FIXO, TIPO FACHADA | D75: m² | E75: 124.96 | F75: 591.3096
A76: 250144 | C76: CAIXILHO EM ALUMÍNIO MAXIMAR, TIPO FACHADA | D76: m² | E76: 23.41 | F76: 677.5758
A77: 74071/002 | C77: PORTA DE ABRIR EM ALUMINIO TIPO VENEZIANA, PERFIL SERIE 25, COM GUARNIÇÕES | D77: m² | E77: 5.4 | F77: 512.0462
A78: 06.70.001 | C78: RECOLOCAÇÃO DE ESQUADRIAS METALICAS | D78: m² | E78: 5 | F78: 27.46
B80: 7 | C80: ESQUADRIA DE MADEIRA | G80: =SUM(G81:G87) -> 0
A81: 230902 | C81: PORTA LISA COM BATENTE MADEIRA - 62 X 210 CM | D81: un | E81: 1 | F81: 293.4222
A82: 230903 | C82: PORTA LISA COM BATENTE MADEIRA - 72 X 210 CM | D82: un | E82: 1 | F82: 299.4124
A83: 230904 | C83: PORTA LISA COM BATENTE MADEIRA - 82 X 210 CM | D83: un | E83: 9 | F83: 299.4124
A84: 230911 | C84: PORTA LISA COM BATENTE MADEIRA - 110 X 210 CM | D84: un | E84: 1 | F84: 455.8042
A85: 230910 | C85: PORTA LISA COM BATENTE MADEIRA - 140 X 210 CM | D85: un | E85: 1 | F85: 505.9218
A86: 230413 | C86: PORTA LISA COM ACABAMENTO LISO, BATENTE DE MADEIRA 2FL - 180 X 210 | D86: un | E86: 2 | F86: 1420.4094
A87: 06.03.017 | C87: BP-02 BARRA ANTIPANICO DUPLA | D87: un | E87: 2 | F87: 1381.25
B89: 8 | C89: VIDRO | G89: =SUM(G90:G93) -> 0
A90: 26.02.06 | C90: VIDRO TEMPERADO INCOLOR DE 10 MM | D90: m² | E90: 58.27 | F90: 251.7226
A91: 260204 | C91: VIDRO TEMPERADO INCOLOR DE 8 MM | D91: m² | E91: 29.45 | F91: 244.0976
A92: 260117 | C92: VIDRO LISO LAMINADO INCOLOR DE 10 MM | D92: m² | E92: 118.1 | F92: 285.2604
A93: 14.02.010 | C93: ESPELHO DE CRISTAL | D93: m² | E93: 3.02 | F93: 216.25
B95: 9 | C95: COBERTURA | G95: =SUM(G96:G103) -> 0
A96: 08.12.031 | C96: RUFO EM CHAPA GALVANIZADA N 24 CORTE 0,16 M | D96: m | E96: 110.01 | F96: 27.24
A97: 08.12.015 | C97: CALHA OU AGUA FURTADA EM CHAPA GALV #24 C=0,33M | D97: m | E97: 10.1 | F97: 51.21
A98: 08.12.016 | C98: CALHA OU AGUA FURTADA EM CHAPA GALV. N 24 - CORTE 0,50M | D98: m | E98: 15.6 | F98: 70.08
A99: 08.12.008 | C99: LIGAÇÃO CALHA CONDUTOR DE CHAPA AÇO GALVANIZADO N 24 DIAMETRO DE 4" | D99: un | E99: 37 | F99: 44.63
A100: 08.11.033 | C100: TUBO DE PVC RIGIDO JUNTA ELASTICA DN 100MM (4") INCL CONEXOES | D100: m | E100: 6 | F100: 40.56
A101: 08.12.003 | C101: CONDUTOR EM CHAPA GALVANIZADA N 24 DESENV. 0,33 M | D101: m | E101: 10 | F101: 57.52
A102: 150303 | C102: FORNECIMENTO E MONTAGEM DE ESTRUTURA EM AÇO ASTM-A32, SEM PINTURA | D102: kg | E102: 591.16 | F102: 13.054
A103: 161307 | C103: TELHAMENTO EM CHAPA DE AÇO PRÉ-PINTADA COM EPÓXI E POLIÉSTER, TIPO SANDUICHE, ESPESSURA DE 0,50 mm COM POLIURETANO | D103: m² | E103: 147.79 | F103: 106.14
B105: 10 | C105: REVESTIMENTO DE FORRO | G105: =SUM(G106:G107) -> 0
A106: 10.01.049 | C106: FORRO DE GESSO ACARTONADO INCL ESTRUTURA | D106: m² | E106: 648.2 | F106: 53.97
A107: 73778/002 | C107: FORRO TIPO PARALINE COM REGUAS ABERTAS LISAS PERFURADAS EM ACO GALVANIZADO | D107: m² | E107: 111.41 | F107: 126.941
B109: 11 | C109: REVESTIMENTO DE PAREDES INTERNAS | G109: =SUM(G110:G117) -> 0
A110: 12.02.009 | C110: REVESTIMENTO COM GESSO | D110: m² | E110: 109.84 | F110: 13.88
A111: 12.02.007 | C111: REBOCO | D111: m² | E111: 801.87 | F111: 16.48
A112: 12.02.002 | C112: CHAPISCO PARA PAREDE INTERNA | D112: m² | E112: 801.87 | F112: 4.49
A113: 12.04.024 | C113: REVESTIMENTO COM PASTILHAS ESMALTADAS 5,0X 5,0 CM | D113: m² | E113: 115.11 | F113: 142.4
A114: 04.03.022 | C114: DIVISORIA CHAPA FIBRA MAD PRENS BP/PAINEL/VIDRO/VENTIL PERM E=35MM | D114: m² | E114: 13.925 | F114: 137.08
A115: 04.03.023 | C115: DIVISORIA CHAPA FIBRA MAD PRENS BP/PAINEL CEGO 1,20X2,11M E=35MM | D115: m² | E115: 32.87 | F115: 88.7
A116: 73747/001 | C116: ISOLAMENTO ACUSTICO ESPESSURA 20 MM, DENSIDADE 29KG/M³ | D116: m² | E116: 47.01 | F116: 59.7678
A117: 10.01.060 | C117: ISOLACAO - CHAPA DE ISOPOR E=30MM | D117: m² | E117: 402.9 | F117: 9.12
B119: 12 | C119: REVESTIMENTO DE PAREDES EXTERNAS | G119: =SUM(G120:G121) -> 0
A120: 12.04.004 | C120: CHAPISCO PARA PAREDE EXTERNA | D120: m² | E120: 398.79 | F120: 4.49
A121: 12.04.007 | C121: REBOCO PARA PAREDE EXTERNA | D121: m² | E121: 398.79 | F121: 16.48
B123: 13 | C123: PISOS INTERNOS | G123: =SUM(G124:G142) -> 0
A124: 13.80.033 | C124: TELA Q-138 E ESPAÇADOR TRELIÇADO PARA PISO DE CONCRETO | D124: m² | E124: 513.19 | F124: 17.61
A125: 170104 | C125: LASTRO DE CONCRETO IMPERMEABILIZADO FCK 20 MPA e=8cm | D125: m³ | E125: 41.06 | F125: 459.3422 | T125: =380.97*0.08 -> 30.4776
A126: 13.01.018 | C126: ARGAMASSA DE REGULARIZACAO CIM/AREIA 1:3 C/ IMPERM. ESP=2,50CM | D126: m² | E126: 615.31 | F126: 21.14
A127: 11.04.041 | C127: SELANTE DE POLIURETANO P/ JUNTAS MOVIMENTAÇÃO/DESSOLIDARIZAÇÃO | D127: m | E127: 12.8 | F127: 18.18
A128: 180614 | C128: PISO CERAMICO ESMALTADO ENTIDERRAPANTE PEI-5 RESISTENCIA QUIMICA A, PARA AREAS INTERNAS COM SAIDA PARA O EXTERIOR, ASSENTADO COM ARGAMASSA COLANTE INDUSTRIALIZADA | D128: m² | E128: 340.18 | F128: 72.5534
A129: 180616 | C129: RODAPÉ CERAMICO ESMALTADO PEI-5 RESISTENCIA QUIMICA A, PARA AREAS INTERNAS COM SAIDA PARA O EXTERIOR ASSENTADO COM ARGAMASSA COLANTE INDUSTRIALIZADA. | D129: m | E129: 134.28 | F129: 14.2862
A130: 72138 | C130: PISO EM GRANITO 50X50CM LEVIGADO ESPESSURA 2CM, ASSENTADO COM ARGAMASSA COLANTE DUPLA COLAGEM, COM REJUNTAMENTO EM CIMENTO | D130: m² | E130: 81.5 | F130: 398.4642
A131: CODIGO | B131: Item | C131: DESCRIMINAÇÃO DO SERVIÇO | D131: UN | E131: QTDE | F131: UNIT (R$) | G131: TOTAL (R$)
A134: 210411 | C134: REVESTIMENTO COM CARPETE PARA TRÁFEGO INTENSO, USO COMERCIAL, TIPO BOUCLÊ DE 10 MM | D134: m² | E134: 102.59 | F134: 116.937
A135: 13.80.027 | C135: SOALHO DE TABUA 10X2,0CM MACHO-FEMEA G1-C6 SOBRE VIGAMENTO 6X12CM | D135: m² | E135: 154.26 | F135: 231.25
A136: 73742/001 | C136: RODAPE EM GRANITO PRETO, ESPESSURA 7CM | D136: m | E136: 42.39 | F136: 42.578
A137: 13.80.056 | C137: RODAPE DE MADEIRA DE 7X1,5CM G1-C4 COM CORDAO | D137: m | E137: 101.6 | F137: 16.36
A138: 13.06.008 | C138: SOLEIRA TABUA DE 15CM G1-C6 | D138: m | E138: 52.18 | F138: 41.19
A139: 13.06.009 | C139: SOLEIRA TABUA DE 25CM G1-C6 | D139: m | E139: 9.78 | F139: 54.33
A140: 16.05.045 | C140: TC-08 TAMPA EM GRELHA DE FERRO GALVANIZADO P/ CANALETA (35CM) | D140: m | E140: 3.55 | F140: 363.63
A141: 06.03.033 | C141: GRADE DE PROTECAO | D141: m² | E141: 1.02 | F141: 388.31
A142: 73676 | C142: PISO CIMENTADO LISO, ESPESSURA 1,5CM, INCLUSO JUNTAS DE DILATAÇÃO PLASTICA | D142: m² | E142: 38.67 | F142: 43.74
B144: 14 | C144: PINTURA | G144: =SUM(G145:G153) -> 0
A145: 331002 | C145: LÁTEX PVA EM MASSA, INCLUSIVE PREPARO 3D | D145: m² | E145: 887.04 | F145: 16.5554
A146: 331010 | C146: TEXTURA ACRÍLICA PARA USO INTERNO E EXTERNO | D146: m² | E146: 1545.41 | F146: 23.424
A147: 15.04.005 | C147: LATEX ACRÍLICA PAREDES EXTERNAS FACEFII, CORES EXISTENTES 3D | D147: m² | E147: 2786.48 | F147: 15.05
A148: 331201 | C148: ESMALTE EM SUPERFÍCIE DE MADEIRA, INCLUSIVE PREPARO | D148: m² | E148: 93.24 | F148: 24.4401
A149: 330512 | C149: ESMALTE EM RODAPÉS, BAGUETES OU MOLDURAS DE MADEIRA | D149: m | E149: 101.6 | F149: 3.09
A150: 330533 | C150: VERNIZ EM SUPERFÍCIE DE MADEIRA | D150: m² | E150: 46.8 | F150: 14.43
A151: 202022 | C151: RASPAGEM COM CALAFETAÇÃO E APLICAÇÃO DE CERA | D151: m² | E151: 164.53 | F151: 30.92
A152: 331104 | C152: ESMALTE EM SUPERFÍCIE GALVANIZADA E/OU DE ALUMÍNIO, INCLUSIVE PREPARO | D152: m² | E152: 1.44 | F152: 25.28
A153: 331102 | C153: ESMALTE EM SUPERFÍCIE METÁLICA, INCLUSIVE PREPARO | D153: m² | E153: 17.48 | F153: 25.49
B155: 15 | C155: LOUÇA, METAIS E ACESSORIOS | G155: =SUM(G156:G167) -> 0
A156: 06.03.060 | C156: BARRA DE APOIO P/DEFICIENTES EM INOX ESCOVADO CJ | D156: cj | E156: 1 | F156: 417.46
A157: 08.16.025 | C157: MICTORIO DE LOUCA SIFONADO/AUTO ASPIRANTE BRANCO | D157: un | E157: 2 | F157: 380.99
A158: 08.16.004 | C158: BACIA SIFONADA COM CAIXA DE DESCARGA ACOPLADA BRANCA | D158: un | E158: 6 | F158: 411.14
A159: 08.16.090 | C159: BR-02 LAVATORIO PARA SANITARIO ACESSIVEL | D159: cj | E159: 1 | F159: 1129.68
A160: 08.16.065 | C160: PAPELEIRA DE LOUCA BRANCA DE 15X15CM | D160: un | E160: 6 | F160: 54.53
A161: 08.16.050 | C161: SABONETEIRA DE LOUCA DE 7,5X15 CM | D161: un | E161: 6 | F161: 49.31
A162: 440331 | C162: TORNEIRA MESA PARA LAVATÓRIO ACIONAMENTO HIDROMECÂNICO, COM REGISTRO INTEGRADO REGULADOR, LATÃO CROMADO, DN 1/2", REF DECAMTIC 1170C. | D162: un | E162: 6 | F162: 488.305
A163: 73947/002 | C163: LAVATORIO LOUÇA BR EMBUTIR(CUBA) MEDIO LUXO S/LADRAO 52X39CM FERRAGENS EM METAL CROMADO SIFAO 1680 1"X1.1/4" TORNEIRA DE PRESSAO 1193 DE 1/2" E VALVULA DE ESCOAMENTO 1600 FORNECIMENTO | D163: un | E163: 5 | F163: 212.8534
A164: 440127 | C164: CUBA DE LOUÇA DE EMBUTIR OVAL | D164: un | E164: 5 | F164: 85.339
A165: 74126/001 | C165: BANCADA GRANITO POLIDO E=2,5 CM, LARGURA 60 CM - FORNECIMENTO E INSTALAÇÃO | D165: m | E165: 5.8 | F165: 255.3704
A166: 190106 | C166: PEITORIL E/OU SOLEIRA EM GRANITO COM ESPESSURA DE 2 CM E LARGURA ATÉ 20 CM | D166: m | E166: 11.6 | F166: 70.64
A167: 480202 | C167: RESERVATÓRIO DE FIBRA DE VIDRO - CAPACIDADE 1000LITROS | D167: un | E167: 1 | F167: 334.0848
B169: 16 | C169: HIDRÁULICA | G169: =SUM(G170:G187) -> 0
A170: 08.07.002 | C170: TUBO ACO GALVANIZ NBR5580-CL MEDIA, DN65MM (2 1/2") - INCL CONEXOES | D170: m | E170: 67.45 | F170: 124.44
A171: 08.08.028 | C171: AH-04 ABRIGO PARA HIDRANTE COM MANGUEIRA 1 1/2" E ESGUICHO REGULAVEL | D171: un | E171: 4 | F171: 1112.13
A172: 08.03.015 | C172: TUBO DE PVC RIGIDO JUNTA SOLDAVEL DN 20MM (1/2") INCL CONEXOES | D172: m | E172: 7.05 | F172: 13.07
A173: 08.03.016 | C173: TUBO DE PVC RIGIDO JUNTA SOLDAVEL DN 25MM (3/4") INCL CONEXOES | D173: m | E173: 39.13 | F173: 15.48
A174: 08.03.017 | C174: TUBO DE PVC RIGIDO JUNTA SOLDAVEL DN 32MM (1") INCL CONEXOES | D174: m | E174: 7.2 | F174: 20.53
A175: 08.03.018 | C175: TUBO DE PVC RIGIDO JUNTA SOLDAVEL DN 40MM (1.1/4") INCL CONEXOES | D175: m | E175: 0.86 | F175: 25.04
A176: 08.04.003 | C176: REGISTRO DE GAVETA BRUTO DN 25MM (1") | D176: un | E176: 1 | F176: 53.82
A177: 08.04.004 | C177: REGISTRO DE GAVETA BRUTO DN 32MM (1 1/4") | D177: un | E177: 1 | F177: 77.07
A178: 08.04.021 | C178: REGISTRO DE GAVETA COM CANOPLA CROMADA DN 15MM (1/2") | D178: un | E178: 1 | F178: 75.41
A179: 08.04.022 | C179: REGISTRO DE GAVETA COM CANOPLA CROMADA DN 20MM (3/4") | D179: un | E179: 1 | F179: 84.54
A180: 08.10.006 | C180: CAIXA SIFONADA DE PVC DN 150X150X50MM C/GRELHA METALICA | D180: un | E180: 4 | F180: 45.77
A181: 08.10.038 | C181: CI-01 CAIXA DE INSPECAO 60X60CM PARA ESGOTO | D181: un | E181: 7 | F181: 393.33
A182: 08.09.060 | C182: TUBO DE PVC "R" 40MM INCL CONEXOES - COL ESGOTO | D182: m | E182: 4.2 | F182: 30.2
A183: 08.09.061 | C183: TUBO DE PVC "R" 50MM INCL CONEXOES - COL ESGOTO | D183: m | E183: 6.16 | F183: 32.44
A184: 08.09.062 | C184: TUBO DE PVC "R" 75MM INCL CONEXOES - COL ESGOTO | D184: m | E184: 14.33 | F184: 37.41
A185: 08.09.063 | C185: TUBO DE PVC "R" 100MM INCL CONEXOES - COL ESGOTO | D185: m | E185: 32.98 | F185: 46.97
A186: 08.11.052 | C186: TUBO DE PVC "R" PARA AGUAS PLUVIAIS 75MM - INCL. CONEXOES | D186: m | E186: 5.62 | F186: 37.41
A187: 08.11.051 | C187: TUBO DE PVC "R" PARA AGUAS PLUVIAIS 50MM - INCL. CONEXOES | D187: m | E187: 5.69 | F187: 32.44
B189: 17 | C189: SERVIÇOS DIVERSOS | G189: =SUM(G190:G203) -> 0
A190: 06.03.023 | C190: CO-15 GUARDA CORPO TUBULAR H=1,10M (USO INTERNO) | D190: m | E190: 1.8 | F190: 515.76
A191: 06.03.025 | C191: CO-15 GUARDA CORPO TUBULAR H=1,30M (USO EXTERNO) | D191: m | E191: 21.4 | F191: 633.95
A192: 06.03.009 | C192: CO-06 CORRIMAO TUBULAR | D192: m | E192: 3.2 | F192: 177.65
A193: 08.08.051 | C193: EXTINTOR PORTATIL DE PO QUIMICO ABC CAPACIDADE 6 KG | D193: un | E193: 5 | F193: 146.89
A195: CODIGO | B195: Item | C195: DESCRIMINAÇÃO DO SERVIÇO | D195: UN | E195: QTDE | F195: UNIT (R$) | G195: TOTAL (R$)
A198: 08.08.050 | C198: EXTINTORES MANUAIS DE AGUA PRESSURIZADA CAP DE 10 L | D198: un | E198: 4 | F198: 112.05
A199: 09.08.055 | C199: BOTOEIRA PARA ACIONAMENTO DA BOMBA DE INCENDIO | D199: un | E199: 4 | F199: 278.03
A200: 09.08.086 | C200: ACIONADOR DO ALARME DE INCENDIO | D200: un | E200: 4 | F200: 137.76
A201: 09.08.087 | C201: SIRENE PARA ALARME DE EMERGENCIA- ELETRODUTO DE PVC | D201: un | E201: 1 | F201: 90.36
A202: 09.09.050 | C202: IL-28 ILUMINACAO AUTONOMA DE EMERGENCIA | D202: un | E202: 11 | F202: 193.96
A203: S/COD | C203: REVESTIMENTO ACUSTICO EM MADEIRA (FUNDO) TIPO BICO DE JACA | D203: vb | E203: 1 | F203: 10000
B205: 18 | C205: SERVIÇOS GERAIS | G205: =SUM(G206:G217) -> 0
A206: 16.11.005 | C206: LIMPEZA DA OBRA | D206: m² | E206: 737.56 | F206: 8.58
A207: 550110 | C207: LIMPEZA COMPLEMENTAR E ESPECIAL DE VIDROS | D207: m² | E207: 379.51 | F207: 9.5282
A208: 550113 | C208: LIMPEZA E LAVAGEM DE SUPERFÍCIE REVESTIDA COM MATERIAL CERAMICO OU PASTILHAS POR HIDROJATEAMENTO COM REJUNTAMENTO | D208: m² | E208: 453.58 | F208: 8.113
A209: 190329 | C209: SOLEIRA E/OU PEITORIL EM ARDÓSIA, ESPESSURA DE 2 CM E LARGURA ATÉ 20CM | D209: m | E209: 246.94 | F209: 59.9874
A210: 16.43.003 | C210: FUROS EM CONCRETO COM D=1" E PROFUNDIDADE 30CM | D210: un | E210: 84 | F210: 13.12
A211: 16.46.002 | C211: ANCORAGEM DE BARRAS DE ACO COM RESINA BASE EPOXI | D211: D3 | E211: 12.76 | F211: 79.33
A212: 11.02.022 | C212: IMPERMEABILIZACAO MULTIMEMBRANAS ASFALTICAS - FELTRO ASFALTO LAJE DE FORRO AR COND | D212: m² | E212: 14.7 | F212: 143.99
A213: S/COD | C213: PASSARELA EM AÇO ( MANUTENÇÃO AR COND). PROJETO/EXECUÇÃO E PINTURA- LARG 1,3 m (sobre a cobertura ) | D213: vb | E213: 1 | F213: 25000
A214: 74228/001 | C214: BANCO DE CONCRETO APARENTE LARG=45CM E 10CM ESPESSURA SOBRE DOIS APOIOS DO MESMO MATERIAL COM SEÇÃO DE 10X30CM | D214: m | E214: 22.07 | F214: 151.43
A215: 74236/001 | C215: GRAMA BATATAIS EM PLACAS M2 7,23 | D215: m² | E215: 64.47 | F215: 8.89
A216: 16.02.027 | C216: GA-01 GUIA LEVE OU SEPARADOR DE PISOS | D216: m | E216: 45.52 | F216: 23.57
A217: 73892/002 | C217: EXECUÇÃO DE CALÇADA EM CONCRETO 1:3:5 (FCK=12 MPA) PREPARO MECÂNICO, ESP 7 CM | D217: m² | E217: 60.02 | F217: 31.37
B219: 19 | C219: INSTALAÇÕES ELÉTRICA | G219: =G220+G281 -> 0
B220: 19.1 | C220: BLOCO CENTRAL | G220: =SUM(G221:G280) -> 0
A221: S/COD | C221: QUADRO DISTRIBUIÇÃO GERAL Nº1 (Q.D.G.-1) CONFORME DIAGRAMA UNIFILAR DO PROJETO | D221: pç | E221: 1 | F221: 7800
A222: S/COD | C222: LUMINÁRIA EMBUTIR PARA 02 LAMPADAS PL-26W | D222: pç | E222: 96 | F222: 68.95
A223: S/COD | C223: REATOR AFP PARA LAMPADA PL-26W - 220V | D223: pç | E223: 192 | F223: 13.343
A224: S/COD | C224: LAMPADA PL-26W COM 2 PINOS | D224: pç | E224: 192 | F224: 12.047
A225: S/COD | C225: PROJETOR RETANGULAR COM ALOJAMENTO PARA LAMPADA VAPOR METÁLICO 150W | D225: pç | E225: 2 | F225: 133.915
A226: S/COD | C226: REATOR PARA LAMPADA VAPOR METÁLICO 150W | D226: pç | E226: 2 | F226: 61.085
A227: S/COD | C227: IGNITOR PARA LAMPADA VAPOR METÁLICO 150W | D227: pç | E227: 2 | F227: 40
A228: S/COD | C228: LAMPADA VAPOR METÁLICO 150W | D228: pç | E228: 2 | F228: 47.705
... 204 more rows

Sheet Plan1
